[Event "Betsys MČR v online bleskovém šachu 2021"]
[Site "Chess.com"]
[Date "2021.04.17"]
[Round "5"]
[White "JindrichT_CZE"]
[Black "tkokosek007"]
[Result "1-0"]
[WhiteElo "2068"]
[BlackElo "1398"]
[TimeControl "180+1"]
[EndTime "9:46:37 PDT"]
[Termination "Uživatel JindrichT_CZE zvítězil matem"]

1. e4 {[%clk 0:03:00.9]} 1... Nf6 {[%clk 0:02:56.9]} 2. e5 {[%clk 0:03:00.4]}
2... Nd5 {[%clk 0:02:55.3]} 3. c4 {[%clk 0:03:00]} 3... Nb6 {[%clk 0:02:54.1]}
4. d4 {[%clk 0:02:59.7]} 4... d6 {[%clk 0:02:54.4]} 5. f4 {[%clk 0:02:59.4]}
5... Bf5 {[%clk 0:02:49.8]} 6. Nc3 {[%clk 0:02:58.1]} 6... Nc6 {[%clk
0:02:47.9]} 7. Be3 {[%clk 0:02:57.2]} 7... Nb4 {[%clk 0:02:36.7]} 8. Rc1 {[%clk
0:02:55.6]} 8... dxe5 {[%clk 0:02:23.9]} 9. fxe5 {[%clk 0:02:54.2]} 9... e6
{[%clk 0:02:23.6]} 10. Nf3 {[%clk 0:02:49.9]} 10... Be7 {[%clk 0:02:15.6]} 11.
Be2 {[%clk 0:02:47.3]} 11... Bh4+ {[%clk 0:02:11.8]} 12. g3 {[%clk 0:02:45.3]}
12... Be7 {[%clk 0:02:11.4]} 13. O-O {[%clk 0:02:44.6]} 13... O-O {[%clk
0:02:11.2]} 14. a3 {[%clk 0:02:27]} 14... Nc6 {[%clk 0:02:07.5]} 15. b4 {[%clk
0:02:25.8]} 15... a6 {[%clk 0:01:56.1]} 16. d5 {[%clk 0:02:12]} 16... exd5
{[%clk 0:01:41.3]} 17. cxd5 {[%clk 0:02:09]} 17... Na7 {[%clk 0:01:25.7]} 18.
Nd4 {[%clk 0:02:02.4]} 18... Bh3 {[%clk 0:01:15.9]} 19. Nf5 {[%clk 0:01:47.8]}
19... Bxf5 {[%clk 0:01:12.6]} 20. Rxf5 {[%clk 0:01:45.9]} 20... Nb5 {[%clk
0:00:57.7]} 21. Nxb5 {[%clk 0:01:37.3]} 21... axb5 {[%clk 0:00:57.6]} 22. Bxb6
{[%clk 0:01:27.3]} 22... cxb6 {[%clk 0:00:53.3]} 23. Rc3 {[%clk 0:01:21.8]}
23... Rc8 {[%clk 0:00:46.7]} 24. Qc2 {[%clk 0:01:18.8]} 24... Rxc3 {[%clk
0:00:45.2]} 25. Qxc3 {[%clk 0:01:18.6]} 25... Qxd5 {[%clk 0:00:38.1]} 26. Bf3
{[%clk 0:01:09.5]} 26... Qe6 {[%clk 0:00:33.3]} 27. Rf4 {[%clk 0:01:04.2]} 27...
Bg5 {[%clk 0:00:31.8]} 28. Rg4 {[%clk 0:01:01.3]} 28... Rc8 {[%clk 0:00:28.4]}
29. Qd3 {[%clk 0:00:54.3]} 29... Rc1+ {[%clk 0:00:25.2]} 30. Kg2 {[%clk
0:00:53.8]} 30... Qa2+ {[%clk 0:00:19.7]} 31. Kh3 {[%clk 0:00:49.7]} 31... Bh6
{[%clk 0:00:18.3]} 32. Qd8# {[%clk 0:00:48.3]} 1-0

[Event "Betsys MČR v online bleskovém šachu 2021"]
[Site "Chess.com"]
[Date "2021.04.17"]
[Round "5"]
[White "vaclavbelaska"]
[Black "JonasFadrny"]
[Result "1-0"]
[WhiteElo "1403"]
[BlackElo "758"]
[TimeControl "180+1"]
[EndTime "9:46:37 PDT"]
[Termination "Uživatel vaclavbelaska zvítězil matem"]

1. e4 {[%clk 0:03:00.7]} 1... e5 {[%clk 0:02:59.5]} 2. Nf3 {[%clk 0:02:59.1]}
2... Nc6 {[%clk 0:02:59.7]} 3. d4 {[%clk 0:02:56.5]} 3... Nf6 {[%clk 0:03:00.2]}
4. Nc3 {[%clk 0:02:51]} 4... exd4 {[%clk 0:02:58.5]} 5. Nxd4 {[%clk 0:02:48.8]}
5... Nxd4 {[%clk 0:02:58.3]} 6. Qxd4 {[%clk 0:02:46.8]} 6... d6 {[%clk 0:02:55]}
7. Bg5 {[%clk 0:02:40.8]} 7... Be7 {[%clk 0:02:51.8]} 8. Bd3 {[%clk 0:02:22.8]}
8... O-O {[%clk 0:02:49.4]} 9. O-O-O {[%clk 0:02:19.3]} 9... h6 {[%clk
0:02:49.8]} 10. Bf4 {[%clk 0:02:16.7]} 10... c5 {[%clk 0:02:46.6]} 11. Qe3
{[%clk 0:02:14.8]} 11... Be6 {[%clk 0:02:44.3]} 12. f3 {[%clk 0:02:07.2]} 12...
Qa5 {[%clk 0:02:40.3]} 13. a3 {[%clk 0:02:04]} 13... c4 {[%clk 0:02:32.3]} 14.
Be2 {[%clk 0:01:59.3]} 14... Qb6 {[%clk 0:02:20]} 15. g4 {[%clk 0:01:50.1]}
15... Qxe3+ {[%clk 0:02:17.3]} 16. Bxe3 {[%clk 0:01:44.2]} 16... Rfc8 {[%clk
0:02:11.6]} 17. h4 {[%clk 0:01:35.1]} 17... Nd7 {[%clk 0:02:07.5]} 18. g5 {[%clk
0:01:23.6]} 18... h5 {[%clk 0:02:03]} 19. f4 {[%clk 0:01:21.2]} 19... Nb6 {[%clk
0:01:56.3]} 20. f5 {[%clk 0:01:17.7]} 20... Bd7 {[%clk 0:01:54.4]} 21. Bxh5
{[%clk 0:01:16.7]} 21... Na4 {[%clk 0:01:48.2]} 22. Nxa4 {[%clk 0:01:13.3]}
22... Bxa4 {[%clk 0:01:47]} 23. g6 {[%clk 0:01:00.2]} 23... f6 {[%clk
0:01:46.2]} 24. Bf3 {[%clk 0:00:54.8]} 24... c3 {[%clk 0:01:43.7]} 25. b3 {[%clk
0:00:49.5]} 25... Bb5 {[%clk 0:01:37.7]} 26. h5 {[%clk 0:00:46.1]} 26... d5
{[%clk 0:01:33.4]} 27. exd5 {[%clk 0:00:43.2]} 27... Bxa3+ {[%clk 0:01:31.9]}
28. Kb1 {[%clk 0:00:38.7]} 28... Bd7 {[%clk 0:01:27.7]} 29. Be4 {[%clk
0:00:32.5]} 29... Bb2 {[%clk 0:01:22.6]} 30. h6 {[%clk 0:00:28.3]} 30... gxh6
{[%clk 0:01:17.6]} 31. Bxh6 {[%clk 0:00:25.2]} 31... Rc5 {[%clk 0:01:14.9]} 32.
d6 {[%clk 0:00:24.2]} 32... Ra5 {[%clk 0:01:10.7]} 33. Bd5+ {[%clk 0:00:23.1]}
33... Kh8 {[%clk 0:01:00.6]} 34. Bg5+ {[%clk 0:00:21.3]} 34... Kg7 {[%clk
0:01:00]} 35. Rh7+ {[%clk 0:00:18.9]} 35... Kf8 {[%clk 0:00:59.3]} 36. Bh6+
{[%clk 0:00:14.5]} 36... Ke8 {[%clk 0:00:58.7]} 37. Rh8# {[%clk 0:00:13.5]} 1-0

[Event "Betsys MČR v online bleskovém šachu 2021"]
[Site "Chess.com"]
[Date "2021.04.17"]
[Round "5"]
[White "fera_v"]
[Black "Mitram64"]
[Result "0-1"]
[WhiteElo "2235"]
[BlackElo "2043"]
[TimeControl "180+1"]
[EndTime "9:46:38 PDT"]
[Termination "Uživatel Mitram64 zvítězil po vzdání soupeře"]

1. e4 {[%clk 0:03:00.9]} 1... c6 {[%clk 0:02:59.1]} 2. d4 {[%clk 0:03:00]} 2...
d5 {[%clk 0:02:58.8]} 3. Nc3 {[%clk 0:03:00.7]} 3... dxe4 {[%clk 0:02:57.9]} 4.
Nxe4 {[%clk 0:03:01.6]} 4... Bf5 {[%clk 0:02:57.7]} 5. Ng3 {[%clk 0:03:01.4]}
5... Bg6 {[%clk 0:02:57.6]} 6. Nh3 {[%clk 0:03:02]} 6... Nf6 {[%clk 0:02:56]} 7.
Nf4 {[%clk 0:03:02]} 7... e5 {[%clk 0:02:55.4]} 8. Nxg6 {[%clk 0:03:00.5]} 8...
hxg6 {[%clk 0:02:54]} 9. dxe5 {[%clk 0:02:59.7]} 9... Qa5+ {[%clk 0:02:52]} 10.
c3 {[%clk 0:02:55.5]} 10... Qxe5+ {[%clk 0:02:50.3]} 11. Be2 {[%clk 0:02:55.5]}
11... Bc5 {[%clk 0:02:40.1]} 12. O-O {[%clk 0:02:53.5]} 12... Nbd7 {[%clk
0:02:38.8]} 13. Bf3 {[%clk 0:02:39]} 13... O-O-O {[%clk 0:02:37.2]} 14. Re1
{[%clk 0:02:37.2]} 14... Qc7 {[%clk 0:02:15.8]} 15. Qa4 {[%clk 0:02:31.8]} 15...
Rxh2 {[%clk 0:02:00.6]} 16. Kxh2 {[%clk 0:02:27.9]} 16... Rh8+ {[%clk
0:01:59.2]} 17. Kg1 {[%clk 0:02:13.7]} 17... Qxg3 {[%clk 0:01:57.5]} 18. Be3
{[%clk 0:02:04.6]} 18... Qh2+ {[%clk 0:01:46.7]} 19. Kf1 {[%clk 0:02:03.9]}
19... Nd5 {[%clk 0:01:28.3]} 20. Bxd5 {[%clk 0:01:52.7]} 20... cxd5 {[%clk
0:01:27.4]} 21. Bxc5 {[%clk 0:01:44.7]} 21... Nxc5 {[%clk 0:01:26]} 22. Qg4+
{[%clk 0:01:41.7]} 22... Kb8 {[%clk 0:01:22.9]} 23. Qg3+ {[%clk 0:01:40.2]}
23... Qxg3 {[%clk 0:01:22]} 24. fxg3 {[%clk 0:01:40.7]} 24... Nd3 {[%clk
0:01:21.4]} 25. Red1 {[%clk 0:01:33.7]} 25... Nxb2 {[%clk 0:01:19.2]} 26. Rdb1
{[%clk 0:01:33.7]} 26... Nc4 {[%clk 0:01:16.6]} 27. Kf2 {[%clk 0:01:31.1]} 27...
Nd2 {[%clk 0:01:01.3]} 28. Rc1 {[%clk 0:01:24]} 28... Ne4+ {[%clk 0:00:53]} 29.
Kf3 {[%clk 0:01:23.6]} 29... Rc8 {[%clk 0:00:49]} 30. Rab1 {[%clk 0:01:10.2]}
30... Nd2+ {[%clk 0:00:47.8]} 31. Kf4 {[%clk 0:01:06.9]} 31... Nxb1 {[%clk
0:00:47.6]} 32. Rxb1 {[%clk 0:01:07.2]} 32... Rxc3 {[%clk 0:00:47.2]} 33. Rb2
{[%clk 0:01:03.3]} 33... Kc7 {[%clk 0:00:46.1]} 34. Ke5 {[%clk 0:01:02.7]} 34...
Rxg3 {[%clk 0:00:43.8]} 35. Kxd5 {[%clk 0:01:02.8]} 35... Rg5+ {[%clk 0:00:42]}
36. Kd4 {[%clk 0:01:01.1]} 36... f6 {[%clk 0:00:41.4]} 37. Ke4 {[%clk
0:00:57.7]} 37... Re5+ {[%clk 0:00:40.4]} 38. Kd4 {[%clk 0:00:57.9]} 38... g5
{[%clk 0:00:39.1]} 39. g3 {[%clk 0:00:56.5]} 39... Ra5 {[%clk 0:00:37.1]} 40.
Rc2+ {[%clk 0:00:53.3]} 40... Kd6 {[%clk 0:00:36.3]} 41. Rd2 {[%clk 0:00:53]}
41... Rd5+ {[%clk 0:00:35.1]} 0-1

[Event "Betsys MČR v online bleskovém šachu 2021"]
[Site "Chess.com"]
[Date "2021.04.17"]
[Round "5"]
[White "petrgnojek"]
[Black "g4g5g4g5"]
[Result "1-0"]
[WhiteElo "2257"]
[BlackElo "2001"]
[TimeControl "180+1"]
[EndTime "9:46:38 PDT"]
[Termination "Uživatel petrgnojek zvítězil matem"]

1. d4 {[%clk 0:03:00.9]} 1... Nf6 {[%clk 0:02:57]} 2. c4 {[%clk 0:02:59.7]} 2...
e6 {[%clk 0:02:55.6]} 3. Nc3 {[%clk 0:02:59.2]} 3... d5 {[%clk 0:02:54]} 4. cxd5
{[%clk 0:02:58.8]} 4... exd5 {[%clk 0:02:53.4]} 5. Bg5 {[%clk 0:02:58.9]} 5...
c6 {[%clk 0:02:52]} 6. e3 {[%clk 0:02:59]} 6... Be7 {[%clk 0:02:51.2]} 7. Bd3
{[%clk 0:02:58.6]} 7... O-O {[%clk 0:02:48.5]} 8. Nf3 {[%clk 0:02:58.1]} 8...
Nbd7 {[%clk 0:02:44.7]} 9. O-O {[%clk 0:02:57.5]} 9... Re8 {[%clk 0:02:44]} 10.
h3 {[%clk 0:02:57.2]} 10... Nf8 {[%clk 0:02:43.2]} 11. Ne5 {[%clk 0:02:57.3]}
11... N6d7 {[%clk 0:02:39.9]} 12. Bxe7 {[%clk 0:02:51.5]} 12... Qxe7 {[%clk
0:02:39.7]} 13. Nf3 {[%clk 0:02:40.9]} 13... g6 {[%clk 0:02:26.7]} 14. Qc2
{[%clk 0:02:38.9]} 14... f5 {[%clk 0:02:26.2]} 15. Rfe1 {[%clk 0:02:33.9]} 15...
Nf6 {[%clk 0:02:25.5]} 16. Ne5 {[%clk 0:02:32.7]} 16... N8d7 {[%clk 0:02:23.5]}
17. f4 {[%clk 0:02:32.1]} 17... Ne4 {[%clk 0:02:21.9]} 18. Rab1 {[%clk
0:02:30.3]} 18... Nd6 {[%clk 0:02:18.6]} 19. b4 {[%clk 0:02:28.5]} 19... a6
{[%clk 0:02:18.3]} 20. a4 {[%clk 0:02:27.5]} 20... Nxe5 {[%clk 0:02:05.7]} 21.
fxe5 {[%clk 0:02:26.4]} 21... Ne4 {[%clk 0:02:03.7]} 22. Bxe4 {[%clk 0:02:23.5]}
22... dxe4 {[%clk 0:01:54.9]} 23. b5 {[%clk 0:02:21.2]} 23... axb5 {[%clk
0:01:54.6]} 24. axb5 {[%clk 0:02:22.1]} 24... Be6 {[%clk 0:01:52.8]} 25. bxc6
{[%clk 0:02:19]} 25... bxc6 {[%clk 0:01:52.7]} 26. Na4 {[%clk 0:02:18.2]} 26...
Bd5 {[%clk 0:01:50]} 27. Nc5 {[%clk 0:02:03.7]} 27... Reb8 {[%clk 0:01:41.8]}
28. Rxb8+ {[%clk 0:01:58.8]} 28... Rxb8 {[%clk 0:01:41]} 29. Rb1 {[%clk
0:01:59.1]} 29... Rxb1+ {[%clk 0:01:34.8]} 30. Qxb1 {[%clk 0:01:57.8]} 30... Qg5
{[%clk 0:01:26.5]} 31. Qe1 {[%clk 0:01:41.5]} 31... Kg7 {[%clk 0:01:17.9]} 32.
Qf2 {[%clk 0:01:28]} 32... Qe7 {[%clk 0:01:10.2]} 33. Qd2 {[%clk 0:01:22.9]}
33... Qa7 {[%clk 0:01:05.6]} 34. Qb4 {[%clk 0:01:03.4]} 34... Qa1+ {[%clk
0:01:00.7]} 35. Kh2 {[%clk 0:01:02.5]} 35... Qf1 {[%clk 0:00:56.8]} 36. Nd7
{[%clk 0:00:58.1]} 36... Kh6 {[%clk 0:00:46.4]} 37. Qf8+ {[%clk 0:00:49.1]}
37... Kg5 {[%clk 0:00:42.9]} 38. h4+ {[%clk 0:00:46.3]} 38... Kxh4 {[%clk
0:00:33.8]} 39. Qh6+ {[%clk 0:00:45.4]} 39... Kg4 {[%clk 0:00:33.1]} 40. Nf6#
{[%clk 0:00:46.3]} 1-0

[Event "Betsys MČR v online bleskovém šachu 2021"]
[Site "Chess.com"]
[Date "2021.04.17"]
[Round "5"]
[White "koky_3"]
[Black "masodj"]
[Result "1-0"]
[WhiteElo "2054"]
[BlackElo "1730"]
[TimeControl "180+1"]
[EndTime "9:46:38 PDT"]
[Termination "Uživatel koky_3 zvítězil po vzdání soupeře"]

1. e4 {[%clk 0:03:00.9]} 1... c5 {[%clk 0:02:58.6]} 2. Nf3 {[%clk 0:03:00.3]}
2... Nc6 {[%clk 0:02:58.4]} 3. d4 {[%clk 0:03:00.7]} 3... cxd4 {[%clk
0:02:58.4]} 4. Nxd4 {[%clk 0:03:01.3]} 4... Nf6 {[%clk 0:02:57.2]} 5. Nc3 {[%clk
0:03:01.1]} 5... g6 {[%clk 0:02:56.5]} 6. Be3 {[%clk 0:02:58.8]} 6... Bg7 {[%clk
0:02:57]} 7. Bc4 {[%clk 0:02:58.4]} 7... O-O {[%clk 0:02:55.9]} 8. Bb3 {[%clk
0:02:58.3]} 8... d6 {[%clk 0:02:55.7]} 9. f3 {[%clk 0:02:57.8]} 9... Bd7 {[%clk
0:02:42.7]} 10. Qd2 {[%clk 0:02:55.6]} 10... Rc8 {[%clk 0:02:40.3]} 11. O-O-O
{[%clk 0:02:54.7]} 11... Ne5 {[%clk 0:02:39.2]} 12. Bh6 {[%clk 0:02:51]} 12...
Nc4 {[%clk 0:02:36.4]} 13. Bxc4 {[%clk 0:02:50.9]} 13... Rxc4 {[%clk 0:02:35.9]}
14. Nde2 {[%clk 0:02:50.1]} 14... Be6 {[%clk 0:02:22.6]} 15. Bxg7 {[%clk
0:02:46]} 15... Kxg7 {[%clk 0:02:22.1]} 16. e5 {[%clk 0:02:46.1]} 16... Nd7
{[%clk 0:01:56.2]} 17. exd6 {[%clk 0:02:45.1]} 17... exd6 {[%clk 0:01:55.6]} 18.
Qxd6 {[%clk 0:02:44.9]} 18... Rc6 {[%clk 0:01:52.6]} 19. Qd4+ {[%clk 0:02:40.8]}
19... Qf6 {[%clk 0:01:44.8]} 20. Kb1 {[%clk 0:02:33.6]} 20... Rfc8 {[%clk
0:01:39.5]} 21. Qxf6+ {[%clk 0:02:27.2]} 21... Nxf6 {[%clk 0:01:38.7]} 22. Nd4
{[%clk 0:02:27.1]} 22... Rb6 {[%clk 0:01:30.9]} 23. Nxe6+ {[%clk 0:02:26.8]}
23... fxe6 {[%clk 0:01:26.4]} 24. Kc1 {[%clk 0:02:25.5]} 24... Kf7 {[%clk
0:01:23.9]} 25. Rhe1 {[%clk 0:02:24.2]} 25... a6 {[%clk 0:01:21.8]} 26. Ne4
{[%clk 0:02:18.3]} 26... Rbc6 {[%clk 0:01:17.9]} 27. Nd6+ {[%clk 0:02:15.2]}
27... Ke7 {[%clk 0:01:12.2]} 28. Nxc8+ {[%clk 0:02:14.7]} 28... Rxc8 {[%clk
0:01:12.3]} 29. Re5 {[%clk 0:02:03]} 29... Kf7 {[%clk 0:01:04.1]} 30. Rd6 {[%clk
0:01:56.6]} 30... Re8 {[%clk 0:00:51.8]} 31. c4 {[%clk 0:01:56.3]} 31... Re7
{[%clk 0:00:46.8]} 32. Kc2 {[%clk 0:01:54.2]} 32... Nd7 {[%clk 0:00:46.3]} 33.
Re3 {[%clk 0:01:44.6]} 33... Nb8 {[%clk 0:00:39.1]} 34. b4 {[%clk 0:01:43.1]}
34... Nc6 {[%clk 0:00:38.8]} 35. Kc3 {[%clk 0:01:41.7]} 35... Kf6 {[%clk
0:00:35.8]} 36. a4 {[%clk 0:01:37.8]} 36... Ne5 {[%clk 0:00:31.5]} 37. c5 {[%clk
0:01:28.1]} 37... Nf7 {[%clk 0:00:29.6]} 38. Rb6 {[%clk 0:01:23.5]} 38... h5
{[%clk 0:00:23.6]} 39. b5 {[%clk 0:01:22.6]} 39... axb5 {[%clk 0:00:23.1]} 40.
axb5 {[%clk 0:01:22.4]} 40... Rc7 {[%clk 0:00:22.6]} 41. Kb4 {[%clk 0:01:21.1]}
41... Re7 {[%clk 0:00:20.5]} 42. c6 {[%clk 0:01:17.6]} 42... bxc6 {[%clk
0:00:20.2]} 43. bxc6 {[%clk 0:01:17.3]} 43... Kf5 {[%clk 0:00:19.6]} 44. Rb7
{[%clk 0:01:15.9]} 44... Re8 {[%clk 0:00:19]} 45. Rxf7+ {[%clk 0:01:15.1]} 1-0

[Event "Betsys MČR v online bleskovém šachu 2021"]
[Site "Chess.com"]
[Date "2021.04.17"]
[Round "5"]
[White "NikolaKusova"]
[Black "sachistamartin"]
[Result "1-0"]
[WhiteElo "1015"]
[BlackElo "1429"]
[TimeControl "180+1"]
[EndTime "9:46:38 PDT"]
[Termination "Uživatel NikolaKusova zvítězil matem"]

1. e4 {[%clk 0:03:00.9]} 1... e5 {[%clk 0:02:59.7]} 2. Nf3 {[%clk 0:02:59.2]}
2... Nc6 {[%clk 0:02:59.4]} 3. d4 {[%clk 0:02:58.6]} 3... exd4 {[%clk
0:02:59.1]} 4. Bc4 {[%clk 0:02:57.9]} 4... d6 {[%clk 0:02:57.8]} 5. O-O {[%clk
0:02:50.8]} 5... h6 {[%clk 0:02:57]} 6. Bf4 {[%clk 0:02:44.8]} 6... g5 {[%clk
0:02:54.4]} 7. Bg3 {[%clk 0:02:43.5]} 7... Bg4 {[%clk 0:02:52.7]} 8. Qd3 {[%clk
0:02:38.9]} 8... Bg7 {[%clk 0:02:43.4]} 9. h3 {[%clk 0:02:34.6]} 9... Bxf3
{[%clk 0:02:42.9]} 10. Qxf3 {[%clk 0:02:33.1]} 10... Ne5 {[%clk 0:02:42.3]} 11.
Bxe5 {[%clk 0:02:29.9]} 11... f6 {[%clk 0:02:34.8]} 12. Bg3 {[%clk 0:02:25.5]}
12... Ne7 {[%clk 0:02:28.3]} 13. Nd2 {[%clk 0:02:14.4]} 13... a6 {[%clk
0:02:25.3]} 14. Be6 {[%clk 0:02:11.9]} 14... Ng6 {[%clk 0:02:13.9]} 15. Qh5
{[%clk 0:02:06]} 15... Ke7 {[%clk 0:02:08]} 16. Qxg6 {[%clk 0:01:58.3]} 16...
Kxe6 {[%clk 0:02:07.1]} 17. Qxg7 {[%clk 0:01:57.6]} 17... Rg8 {[%clk 0:02:06]}
18. Qxh6 {[%clk 0:01:55.3]} 18... Qe7 {[%clk 0:02:04.2]} 19. Rfe1 {[%clk
0:01:45.5]} 19... Rh8 {[%clk 0:02:03.5]} 20. Qg6 {[%clk 0:01:39.1]} 20... Rag8
{[%clk 0:01:59.9]} 21. Qf5+ {[%clk 0:01:34.2]} 21... Kf7 {[%clk 0:01:59.6]} 22.
Qd5+ {[%clk 0:01:20.5]} 22... Ke8 {[%clk 0:01:56.4]} 23. Rad1 {[%clk 0:01:11.9]}
23... c6 {[%clk 0:01:50.8]} 24. Qb3 {[%clk 0:01:09.4]} 24... g4 {[%clk
0:01:39.8]} 25. hxg4 {[%clk 0:01:06.1]} 25... Rxg4 {[%clk 0:01:38.3]} 26. Qf3
{[%clk 0:00:56.8]} 26... Qh7 {[%clk 0:01:32.6]} 27. Kf1 {[%clk 0:00:52.5]} 27...
Rhg8 {[%clk 0:01:15.1]} 28. Qxf6 {[%clk 0:00:41.3]} 28... d3 {[%clk 0:01:08.1]}
29. Qe6+ {[%clk 0:00:37.9]} 29... Kd8 {[%clk 0:01:02.7]} 30. Qxd6+ {[%clk
0:00:35.7]} 30... Kc8 {[%clk 0:01:02]} 31. Qxd3 {[%clk 0:00:27.2]} 31... Qh1+
{[%clk 0:00:54.8]} 32. Ke2 {[%clk 0:00:25.9]} 32... Qxg2 {[%clk 0:00:54.5]} 33.
Qd6 {[%clk 0:00:23.7]} 33... Re8 {[%clk 0:00:48.8]} 34. Qc7# {[%clk 0:00:22.1]}
1-0

[Event "Betsys MČR v online bleskovém šachu 2021"]
[Site "Chess.com"]
[Date "2021.04.17"]
[Round "5"]
[White "adambelaska"]
[Black "vikysachy"]
[Result "1-0"]
[WhiteElo "1437"]
[BlackElo "863"]
[TimeControl "180+1"]
[EndTime "9:46:39 PDT"]
[Termination "Uživatel adambelaska zvítězil matem"]

1. d4 {[%clk 0:03:00.9]} 1... d5 {[%clk 0:02:58.3]} 2. c4 {[%clk 0:02:59.4]}
2... Nf6 {[%clk 0:02:56.7]} 3. Nc3 {[%clk 0:02:57.7]} 3... Nc6 {[%clk
0:02:52.4]} 4. Nf3 {[%clk 0:02:56.1]} 4... e5 {[%clk 0:02:50.5]} 5. dxe5 {[%clk
0:02:54.8]} 5... Ne4 {[%clk 0:02:43.5]} 6. Nxe4 {[%clk 0:02:53.7]} 6... dxe4
{[%clk 0:02:40.9]} 7. Qxd8+ {[%clk 0:02:53.3]} 7... Nxd8 {[%clk 0:02:39.2]} 8.
Nd2 {[%clk 0:02:50.9]} 8... e3 {[%clk 0:01:51.1]} 9. fxe3 {[%clk 0:02:48.1]}
9... Nc6 {[%clk 0:01:49.7]} 10. Nf3 {[%clk 0:02:47.4]} 10... Bf5 {[%clk
0:01:43.6]} 11. Nd4 {[%clk 0:02:41.9]} 11... Nxd4 {[%clk 0:01:40.9]} 12. exd4
{[%clk 0:02:41]} 12... O-O-O {[%clk 0:01:40.7]} 13. e3 {[%clk 0:02:39.5]} 13...
Bb4+ {[%clk 0:01:34.4]} 14. Bd2 {[%clk 0:02:38.4]} 14... Bxd2+ {[%clk
0:01:32.4]} 15. Kxd2 {[%clk 0:02:36.8]} 15... Rhe8 {[%clk 0:01:28.1]} 16. Bd3
{[%clk 0:02:33.9]} 16... Bxd3 {[%clk 0:01:25.5]} 17. Kxd3 {[%clk 0:02:32.2]}
17... Re6 {[%clk 0:01:25.3]} 18. Kc3 {[%clk 0:02:30.4]} 18... Rg6 {[%clk
0:01:20.9]} 19. g3 {[%clk 0:02:27.3]} 19... Rg4 {[%clk 0:01:16.9]} 20. Rhf1
{[%clk 0:02:22.9]} 20... Re4 {[%clk 0:01:12.9]} 21. Kd3 {[%clk 0:02:19.7]} 21...
f5 {[%clk 0:01:10.2]} 22. Rxf5 {[%clk 0:02:17.6]} 22... Rg4 {[%clk 0:01:07.4]}
23. Rh5 {[%clk 0:02:12.3]} 23... h6 {[%clk 0:01:05.5]} 24. Rf5 {[%clk
0:02:09.1]} 24... g6 {[%clk 0:01:04]} 25. Rf6 {[%clk 0:02:07.2]} 25... Re8
{[%clk 0:00:56.5]} 26. e4 {[%clk 0:02:03.5]} 26... Rg5 {[%clk 0:00:48.7]} 27.
Ke3 {[%clk 0:01:57.3]} 27... Rg8 {[%clk 0:00:45.9]} 28. Kf4 {[%clk 0:01:54.4]}
28... Rh5 {[%clk 0:00:41.9]} 29. h4 {[%clk 0:01:51.2]} 29... g5+ {[%clk
0:00:39.3]} 30. hxg5 {[%clk 0:01:49.3]} 30... hxg5+ {[%clk 0:00:39]} 31. Kg4
{[%clk 0:01:47]} 31... Rh2 {[%clk 0:00:27.9]} 32. e6 {[%clk 0:01:39.7]} 32...
Rxb2 {[%clk 0:00:25.8]} 33. Rh1 {[%clk 0:01:36.7]} 33... Re8 {[%clk 0:00:22.1]}
34. Rh7 {[%clk 0:01:34.8]} 34... b6 {[%clk 0:00:17.7]} 35. e7 {[%clk 0:01:30.4]}
35... Rc2 {[%clk 0:00:13.5]} 36. Rf8 {[%clk 0:01:30.2]} 36... Rxf8 {[%clk
0:00:11.3]} 37. exf8=Q+ {[%clk 0:01:29.7]} 37... Kb7 {[%clk 0:00:11.5]} 38. c5
{[%clk 0:01:27.4]} 38... bxc5 {[%clk 0:00:10.3]} 39. dxc5 {[%clk 0:01:26.7]}
39... Rxa2 {[%clk 0:00:09]} 40. Rxc7+ {[%clk 0:01:25.6]} 40... Ka6 {[%clk
0:00:08.6]} 41. Qc8+ {[%clk 0:01:24.8]} 41... Kb5 {[%clk 0:00:08.2]} 42. Rb7+
{[%clk 0:01:24.5]} 42... Kc4 {[%clk 0:00:07.6]} 43. Qe6+ {[%clk 0:01:24.2]}
43... Kxc5 {[%clk 0:00:06.5]} 44. Qd5# {[%clk 0:01:24]} 1-0

[Event "Betsys MČR v online bleskovém šachu 2021"]
[Site "Chess.com"]
[Date "2021.04.17"]
[Round "5"]
[White "dzerenyss"]
[Black "Z_u_z_i"]
[Result "0-1"]
[WhiteElo "1123"]
[BlackElo "1543"]
[TimeControl "180+1"]
[EndTime "9:46:41 PDT"]
[Termination "Uživatel Z_u_z_i zvítězil matem"]

1. e4 {[%clk 0:02:58.3]} 1... c5 {[%clk 0:02:56.4]} 2. c3 {[%clk 0:02:56.3]}
2... e6 {[%clk 0:02:54.4]} 3. d4 {[%clk 0:02:55.4]} 3... cxd4 {[%clk 0:02:53.2]}
4. cxd4 {[%clk 0:02:54.8]} 4... d5 {[%clk 0:02:52.7]} 5. exd5 {[%clk 0:02:53.2]}
5... Qxd5 {[%clk 0:02:52.3]} 6. Nc3 {[%clk 0:02:50.3]} 6... Qd8 {[%clk
0:02:50.2]} 7. Nf3 {[%clk 0:02:48.2]} 7... Nf6 {[%clk 0:02:47.3]} 8. Bb5+ {[%clk
0:02:44.4]} 8... Bd7 {[%clk 0:02:45.2]} 9. Bxd7+ {[%clk 0:02:43.2]} 9... Nbxd7
{[%clk 0:02:43.5]} 10. Bg5 {[%clk 0:02:42.2]} 10... Be7 {[%clk 0:02:42]} 11. O-O
{[%clk 0:02:39.6]} 11... O-O {[%clk 0:02:41.5]} 12. Qd3 {[%clk 0:02:36.6]} 12...
h6 {[%clk 0:02:38.9]} 13. Bh4 {[%clk 0:02:34.8]} 13... Rc8 {[%clk 0:02:36.7]}
14. Rac1 {[%clk 0:02:33.1]} 14... Nb6 {[%clk 0:02:22.3]} 15. Rfe1 {[%clk
0:02:17.7]} 15... Nbd5 {[%clk 0:02:20]} 16. Nxd5 {[%clk 0:02:11.6]} 16... Nxd5
{[%clk 0:02:18.3]} 17. Bxe7 {[%clk 0:02:08.4]} 17... Qxe7 {[%clk 0:02:15.9]} 18.
Ne5 {[%clk 0:02:05.9]} 18... f6 {[%clk 0:02:06.1]} 19. Ng6 {[%clk 0:02:00.9]}
19... Qd6 {[%clk 0:02:01.9]} 20. Nxf8 {[%clk 0:01:55.7]} 20... Rxf8 {[%clk
0:02:01]} 21. Qe4 {[%clk 0:01:47.6]} 21... Re8 {[%clk 0:01:55.8]} 22. Rc5 {[%clk
0:01:39]} 22... Nb4 {[%clk 0:01:39.5]} 23. a3 {[%clk 0:01:28.2]} 23... Nc6
{[%clk 0:01:34.1]} 24. Rc4 {[%clk 0:01:10]} 24... Qd7 {[%clk 0:01:20.2]} 25. b4
{[%clk 0:01:06.2]} 25... a6 {[%clk 0:01:14.6]} 26. a4 {[%clk 0:00:52]} 26... e5
{[%clk 0:01:07.1]} 27. dxe5 {[%clk 0:00:41.6]} 27... Nxe5 {[%clk 0:01:06.7]} 28.
Rd4 {[%clk 0:00:33.4]} 28... Qxa4 {[%clk 0:01:05.6]} 29. Qxb7 {[%clk 0:00:24.6]}
29... Nf3+ {[%clk 0:00:36.4]} 30. Kf1 {[%clk 0:00:17]} 30... Rxe1# {[%clk
0:00:35.5]} 0-1